[Event "Steinthor Baldursson memorial 2018"]
[Site "?"]
[Date "2018.01.04"]
[Round "2"]
[White "Birkisson, Bardur Orn"]
[Black "Eydsteinsson, Silas"]
[Result "1-0"]
[ECO "A40"]
[WhiteElo "2190"]
[BlackElo "2035"]
[PlyCount "61"]
[EventDate "2018.??.??"]
[EventType "swiss"]
[EventCountry "ISL"]
[SourceTitle "Kopavogur"]
[TimeControl "5400+30"]
[WhiteClock "0:00:37"]
[BlackClock "0:13:12"]

1. d4 {[%emt 0:00:00]} e5 {[%emt 0:00:09]} 2. dxe5 {[%emt 0:00:48]} Nc6 {[%emt 0:00:19]} 3. Nf3 {[%emt 0:02:53]} Qe7 {[%emt 0:00:39]} 4. e4 {[%emt 0:22:39]} Nxe5 {[%emt 0:02:45]} 5. Be2 {[%emt 0:00:37]} Nf6 {[%emt 0:17:02]} 6. Nc3 {[%emt 0:02:27]} Nxf3+ {[%emt 0:09:44]} 7. Bxf3 {[%emt 0:01:09]} c6 {[%emt 0:01:02]} 8. O-O {[%emt 0:01:10]} d6 {[%emt 0:05:23]} 9. Re1 {[%emt 0:09:05]} Be6 {[%emt 0:11:33]} 10. Bf4 {[%emt 0:03:27]} Nd7 {[%emt 0:12:25]} 11. Nd5 {[%emt 0:05:58]} Qd8 {[%emt 0:01:28]} 12. Qd4 {[%emt 0:01:48]} f6 {[%emt 0:07:41]} 13. Bh5+ {[%emt 0:14:14]} g6 {[%emt 0:02:27]} 14. Be2 {[%emt 0:05:42]} Ne5 {[%emt 0:02:18]} 15. Ne3 {[%emt 0:00:45]} Qb6 {[%emt 0:05:20]} 16. Qd2 {[%emt 0:00:55]} Be7 {[%emt 0:02:37]} 17. Bg3 {[%emt 0:02:18]} Rd8 {[%emt 0:03:42]} 18. Kh1 {[%emt 0:05:23]} h5 {[%emt 0:02:12]} 19. f4 {[%emt 0:01:29]} Ng4 {[%emt 0:01:24]} 20. Nxg4 {[%emt 0:00:16]} hxg4 {[%emt 0:00:35]} 21. f5 {[%emt 0:00:08]} gxf5 {[%emt 0:04:53]} 22. exf5 {[%emt 0:00:10]} Bxf5 {[%emt 0:00:46]} 23. Qf4 {[%emt 0:00:31]} Qc5 {[%emt 0:02:55]} 24. Bxg4 {[%emt 0:00:10]} Bxg4 {[%emt 0:01:33]} 25. Qxf6 {[%emt 0:00:13]} Kd7 {[%emt 0:00:56]} 26. Rxe7+ {[%emt 0:00:46]} Kc8 {[%emt 0:00:05]} 27. Rg7 {[%emt 0:04:34]} Rhf8 {[%emt 0:00:59]} 28. Qe7 {[%emt 0:01:16]} Qb6 {[%emt 0:00:33]} 29. Rxg4 {[%emt 0:00:25]} Qxb2 {[%emt 0:00:28]} 30. Rg1 {[%emt 0:00:54]} Rfe8 {[%emt 0:00:30]} 31. Qf7 {[%emt 0:00:08]} 1-0

[Event "Steinthor Baldursson memorial 2018"]
[Site "?"]
[Date "2018.01.04"]
[Round "2"]
[White "Birkisson, Bjorn Holm"]
[Black "Dijkhuis, Tycho"]
[Result "0-1"]
[ECO "A01"]
[WhiteElo "2084"]
[BlackElo "2402"]
[PlyCount "106"]
[EventDate "2018.??.??"]
[EventType "swiss"]
[EventCountry "ISL"]
[SourceTitle "Kopavogur"]
[TimeControl "5400+30"]
[WhiteClock "0:01:51"]
[BlackClock "0:00:47"]

1. b3 {[%emt 0:00:00]} e5 {[%emt 0:02:31]} 2. Bb2 {[%emt 0:00:00]} Nc6 {[%emt 0:00:40]} 3. e3 {[%emt 0:00:00]} Nf6 {[%emt 0:00:43]} 4. Bb5 {[%emt 0:00:04]} Bd6 {[%emt 0:00:37]} 5. Na3 {[%emt 0:00:06]} Be7 {[%emt 0:04:15]} 6. Nc4 {[%emt 0:12:48]} e4 {[%emt 0:00:46]} 7. Bxc6 {[%emt 0:03:52]} dxc6 {[%emt 0:01:28]} 8. Ne2 {[%emt 0:03:06]} O-O {[%emt 0:00:12]} 9. O-O {[%emt 0:00:47]} a5 {[%emt 0:00:10]} 10. d3 {[%emt 0:08:34]} exd3 {[%emt 0:09:21]} 11. cxd3 {[%emt 0:01:18]} Re8 {[%emt 0:04:02]} 12. Qc2 {[%emt 0:08:28]} Nd5 {[%emt 0:17:32]} 13. a3 {[%emt 0:04:44]} Bf6 {[%emt 0:12:05]} 14. e4 {[%emt 0:12:52]} Bxb2 {[%emt 0:00:21]} 15. Qxb2 {[%emt 0:00:48]} Nf6 {[%emt 0:02:27]} 16. f3 {[%emt 0:07:11]} a4 {[%emt 0:02:17]} 17. d4 {[%emt 0:00:47]} Be6 {[%emt 0:12:36]} 18. Nf4 {[%emt 0:01:47]} axb3 {[%emt 0:04:12]} 19. Nxe6 {[%emt 0:00:21]} Rxe6 {[%emt 0:00:04]} 20. Rfd1 {[%emt 0:00:31]} Ra4 {[%emt 0:03:24]} 21. Qc3 {[%emt 0:01:59]} Ne8 {[%emt 0:10:52]} 22. Nb2 {[%emt 0:00:49]} Ra7 {[%emt 0:01:46]} 23. Qxb3 {[%emt 0:07:57]} Qh4 {[%emt 0:00:56]} 24. g3 {[%emt 0:06:37]} Qh5 {[%emt 0:00:41]} 25. Nc4 {[%emt 0:00:45]} Qb5 {[%emt 0:03:53]} 26. Qxb5 {[%emt 0:01:28]} cxb5 {[%emt 0:00:04]} 27. d5 {[%emt 0:00:53]} Rea6 {[%emt 0:00:37]} 28. d6 {[%emt 0:01:44]} cxd6 {[%emt 0:01:09]} 29. Ne3 {[%emt 0:02:30]} Rxa3 {[%emt 0:00:09]} 30. Rxa3 {[%emt 0:00:23]} Rxa3 {[%emt 0:00:05]} 31. Nf5 {[%emt 0:00:22]} Ra6 {[%emt 0:02:34]} 32. Rb1 {[%emt 0:02:26]} g6 {[%emt 0:02:28]} 33. Ne7+ {[%emt 0:03:22]} Kf8 {[%emt 0:00:42]} 34. Nd5 {[%emt 0:00:04]} Ra5 {[%emt 0:00:09]} 35. Rc1 {[%emt 0:01:47]} Kg7 {[%emt 0:00:26]} 36. Rb1 {[%emt 0:02:59]} Kf8 {[%emt 0:00:05]} 37. Rc1 {[%emt 0:00:04]} f5 {[%emt 0:01:11]} 38. Rc8 {[%emt 0:00:05]} Kf7 {[%emt 0:00:17]} 39. Rd8 {[%emt 0:00:15]} fxe4 {[%emt 0:00:46]} 40. fxe4 {[%emt 0:00:41]} Nf6 {[%emt 0:00:16]} 41. Rxd6 {[%emt 0:01:00]} Ra6 {[%emt 0:00:58]} 42. Nb6 {[%emt 0:00:51]} Nxe4 {[%emt 0:00:33]} 43. Rd7+ {[%emt 0:00:14]} Ke6 {[%emt 0:00:22]} 44. Rxb7 {[%emt 0:00:11]} Nd6 {[%emt 0:00:35]} 45. Rb8 {[%emt 0:00:16]} b4 {[%emt 0:00:38]} 46. Nc8 {[%emt 0:04:24]} Nxc8 {[%emt 0:00:06]} 47. Rxb4 {[%emt 0:00:04]} Nd6 {[%emt 0:00:10]} 48. Rb8 {[%emt 0:00:55]} Ra2 {[%emt 0:00:17]} 49. Rh8 {[%emt 0:00:16]} h5 {[%emt 0:00:21]} 50. Rf8 {[%emt 0:00:33]} Nf5 {[%emt 0:00:23]} 51. Kh1 {[%emt 0:00:33]} Ke7 {[%emt 0:00:53]} 52. Rc8 {[%emt 0:00:31]} Kf6 {[%emt 0:00:28]} 53. Rc4 {[%emt 0:00:41]} Ra1+ {[%emt 0:00:06]} 0-1

[Event "Steinthor Baldursson memorial 2018"]
[Site "?"]
[Date "2018.01.04"]
[Round "2"]
[White "Thorhallsson, Simon"]
[Black "Ragnarsson, Dagur"]
[Result "1/2-1/2"]
[ECO "A81"]
[WhiteElo "2040"]
[BlackElo "2332"]
[PlyCount "98"]
[EventDate "2018.??.??"]
[EventType "swiss"]
[EventCountry "ISL"]
[SourceTitle "Kopavogur"]
[TimeControl "5400+30"]
[WhiteClock "0:03:01"]
[BlackClock "0:00:41"]

1. d4 {[%emt 0:00:00]} f5 {[%emt 0:00:11]} 2. g3 {[%emt 0:00:17]} Nf6 {[%emt 0:00:10]} 3. Bg2 {[%emt 0:00:05]} g6 {[%emt 0:00:22]} 4. Nf3 {[%emt 0:00:16]} Bg7 {[%emt 0:00:08]} 5. O-O {[%emt 0:00:06]} O-O {[%emt 0:00:04]} 6. c4 {[%emt 0:01:34]} d6 {[%emt 0:00:06]} 7. Nc3 {[%emt 0:03:43]} Qe8 {[%emt 0:00:44]} 8. Re1 {[%emt 0:04:28]} Qf7 {[%emt 0:00:56]} 9. d5 {[%emt 0:12:45]} Ne4 {[%emt 0:17:01]} 10. Nxe4 {[%emt 0:08:11]} fxe4 {[%emt 0:00:07]} 11. Ng5 {[%emt 0:00:04]} Qxf2+ {[%emt 0:00:07]} 12. Kh1 {[%emt 0:00:04]} Qc5 {[%emt 0:04:48]} 13. Qb3 {[%emt 0:03:21]} a5 {[%emt 0:05:06]} 14. Nxe4 {[%emt 0:10:52]} Qb4 {[%emt 0:00:03]} 15. Bd2 {[%emt 0:00:45]} Qxb3 {[%emt 0:00:06]} 16. axb3 {[%emt 0:00:03]} b6 {[%emt 0:09:33]} 17. Rf1 {[%emt 0:07:09]} Rxf1+ {[%emt 0:06:23]} 18. Rxf1 {[%emt 0:00:24]} Na6 {[%emt 0:09:28]} 19. Bc3 {[%emt 0:05:56]} Bf5 {[%emt 0:01:43]} 20. Bxg7 {[%emt 0:06:19]} Kxg7 {[%emt 0:00:31]} 21. Ng5 {[%emt 0:00:40]} Rf8 {[%emt 0:05:41]} 22. Rc1 {[%emt 0:07:10]} Nc5 {[%emt 0:01:09]} 23. Rc3 {[%emt 0:00:27]} h6 {[%emt 0:03:41]} 24. Nf3 {[%emt 0:01:00]} Be4 {[%emt 0:04:48]} 25. Nd2 {[%emt 0:01:40]} Bxg2+ {[%emt 0:00:14]} 26. Kxg2 {[%emt 0:00:05]} Rb8 {[%emt 0:04:10]} 27. Re3 {[%emt 0:04:25]} Kf7 {[%emt 0:00:21]} 28. Nf3 {[%emt 0:01:58]} e5 {[%emt 0:02:26]} 29. dxe6+ {[%emt 0:01:14]} Nxe6 {[%emt 0:00:04]} 30. Re4 {[%emt 0:00:57]} c6 {[%emt 0:05:12]} 31. Nd4 {[%emt 0:02:38]} Nxd4 {[%emt 0:00:17]} 32. Rxd4 {[%emt 0:00:06]} Ke6 {[%emt 0:01:35]} 33. Re4+ {[%emt 0:00:54]} Kf5 {[%emt 0:01:58]} 34. Rd4 {[%emt 0:05:42]} Ke5 {[%emt 0:00:51]} 35. Rg4 {[%emt 0:00:12]} b5 {[%emt 0:03:14]} 36. c5 {[%emt 0:04:55]} g5 {[%emt 0:01:36]} 37. cxd6 {[%emt 0:00:30]} Kxd6 {[%emt 0:00:06]} 38. h4 {[%emt 0:01:15]} Re8 {[%emt 0:00:41]} 39. hxg5 {[%emt 0:00:39]} hxg5 {[%emt 0:00:07]} 40. Kf3 {[%emt 0:00:25]} Re5 {[%emt 0:00:04]} 41. Rd4+ {[%emt 0:02:19]} Kc7 {[%emt 0:01:56]} 42. e4 {[%emt 0:01:12]} Kb6 {[%emt 0:03:17]} 43. Ke3 {[%emt 0:01:20]} Kc5 {[%emt 0:00:11]} 44. Rd3 {[%emt 0:00:29]} Re6 {[%emt 0:02:39]} 45. Rc3+ {[%emt 0:00:24]} Kb4 {[%emt 0:01:28]} 46. Kd4 {[%emt 0:00:40]} Rd6+ {[%emt 0:01:09]} 47. Ke3 {[%emt 0:01:12]} Re6 {[%emt 0:02:25]} 48. Kd4 {[%emt 0:00:51]} Rd6+ {[%emt 0:00:05]} 49. Ke3 {[%emt 0:02:08]} Re6 {[%emt 0:02:27]} 1/2-1/2

[Event "Steinthor Baldursson memorial 2018"]
[Site "?"]
[Date "2018.01.04"]
[Round "2"]
[White "Jappinen, Erland"]
[Black "Jazdanovs, Aleksandrs"]
[Result "0-1"]
[ECO "B92"]
[WhiteElo "2026"]
[BlackElo "2218"]
[PlyCount "46"]
[EventDate "2018.??.??"]
[EventType "swiss"]
[EventCountry "ISL"]
[SourceTitle "Kopavogur"]
[TimeControl "5400+30"]
[WhiteClock "0:44:26"]
[BlackClock "0:47:24"]

1. e4 {[%emt 0:00:00]} c5 {[%emt 0:00:00]} 2. Nf3 {[%emt 0:00:00]} d6 {[%emt 0:00:00]} 3. d4 {[%emt 0:00:00]} cxd4 {[%emt 0:00:14]} 4. Nxd4 {[%emt 0:00:00]} Nf6 {[%emt 0:00:40]} 5. Nc3 {[%emt 0:00:03]} a6 {[%emt 0:00:06]} 6. Be2 {[%emt 0:01:00]} e5 {[%emt 0:01:07]} 7. Nf3 {[%emt 0:00:09]} Be7 {[%emt 0:02:25]} 8. O-O {[%emt 0:01:42]} O-O {[%emt 0:01:40]} 9. a4 {[%emt 0:02:49]} Nbd7 {[%emt 0:02:25]} 10. Bg5 {[%emt 0:02:59]} h6 {[%emt 0:05:15]} 11. Bxf6 {[%emt 0:00:33]} Nxf6 {[%emt 0:01:05]} 12. Re1 {[%emt 0:03:53]} Be6 {[%emt 0:02:41]} 13. Bd3 {[%emt 0:03:47]} Rc8 {[%emt 0:04:00]} 14. h3 {[%emt 0:00:48]} Qb6 {[%emt 0:05:41]} 15. Rb1 {[%emt 0:00:51]} Rfd8 {[%emt 0:04:16]} 16. Qe2 {[%emt 0:00:57]} Nh5 {[%emt 0:05:57]} 17. Nd5 {[%emt 0:03:47]} Bxd5 {[%emt 0:02:52]} 18. exd5 {[%emt 0:03:03]} Nf4 {[%emt 0:05:33]} 19. Qe4 {[%emt 0:00:20]} g6 {[%emt 0:01:28]} 20. Nd2 {[%emt 0:11:57]} f5 {[%emt 0:03:53]} 21. Qf3 {[%emt 0:00:37]} Bg5 {[%emt 0:04:17]} 22. Qg3 {[%emt 0:13:38]} Nh5 {[%emt 0:01:17]} 23. Nc4 {[%emt 0:01:13]} Rxc4 {[%emt 0:00:12]} 0-1

[Event "Steinthor Baldursson memorial 2018"]
[Site "?"]
[Date "2018.01.04"]
[Round "2"]
[White "Briem, Stephan"]
[Black "Skaale, Janus"]
[Result "0-1"]
[ECO "D17"]
[WhiteElo "1890"]
[BlackElo "1752"]
[PlyCount "64"]
[EventDate "2018.??.??"]
[EventType "swiss"]
[EventCountry "ISL"]
[SourceTitle "Kopavogur"]
[TimeControl "5400+30"]
[WhiteClock "0:04:21"]
[BlackClock "0:00:33"]

1. d4 {[%emt 0:00:00]} d5 {[%emt 0:00:00]} 2. c4 {[%emt 0:00:26]} c6 {[%emt 0:00:00]} 3. Nf3 {[%emt 0:00:33]} Nf6 {[%emt 0:00:04]} 4. Nc3 {[%emt 0:00:38]} dxc4 {[%emt 0:00:09]} 5. a4 {[%emt 0:00:45]} Bf5 {[%emt 0:00:20]} 6. Ne5 {[%emt 0:01:06]} e6 {[%emt 0:00:28]} 7. f3 {[%emt 0:03:47]} Bb4 {[%emt 0:00:10]} 8. Nxc4 {[%emt 0:03:16]} O-O {[%emt 0:18:10]} 9. Kf2 {[%emt 0:10:01]} Nd5 {[%emt 0:24:12]} 10. Qd2 {[%emt 0:21:08]} b5 {[%emt 0:09:02]} 11. Ne5 {[%emt 0:11:47]} Qa5 {[%emt 0:05:16]} 12. Qd1 {[%emt 0:16:25]} Nxc3 {[%emt 0:02:34]} 13. bxc3 {[%emt 0:04:53]} Bxc3 {[%emt 0:00:13]} 14. Ra3 {[%emt 0:09:24]} b4 {[%emt 0:02:22]} 15. Nc4 {[%emt 0:03:02]} Qd8 {[%emt 0:01:47]} 16. Rxc3 {[%emt 0:01:49]} bxc3 {[%emt 0:00:17]} 17. e4 {[%emt 0:00:24]} Bg6 {[%emt 0:01:15]} 18. h4 {[%emt 0:02:27]} f6 {[%emt 0:09:25]} 19. Ba3 {[%emt 0:02:00]} Re8 {[%emt 0:01:32]} 20. Nd6 {[%emt 0:02:07]} Re7 {[%emt 0:01:06]} 21. Bc4 {[%emt 0:00:57]} Kh8 {[%emt 0:02:54]} 22. Qb3 {[%emt 0:03:04]} Rd7 {[%emt 0:01:16]} 23. h5 {[%emt 0:00:54]} Bf7 {[%emt 0:03:39]} 24. Nxf7+ {[%emt 0:00:33]} Rxf7 {[%emt 0:00:11]} 25. Qxc3 {[%emt 0:00:29]} Rd7 {[%emt 0:03:48]} 26. Bc5 {[%emt 0:00:25]} e5 {[%emt 0:00:12]} 27. dxe5 {[%emt 0:00:37]} fxe5 {[%emt 0:01:42]} 28. Qxe5 {[%emt 0:00:25]} Rd2+ {[%emt 0:00:07]} 29. Kg3 {[%emt 0:00:36]} Nd7 {[%emt 0:00:08]} 30. Qf5 {[%emt 0:00:26]} Qc7+ {[%emt 0:08:30]} 31. f4 {[%emt 0:00:34]} Qa5 {[%emt 0:00:32]} 32. Qxd7 {[%emt 0:00:29]} Rxd7 {[%emt 0:00:18]} 0-1

[Event "Steinthor Baldursson memorial 2018"]
[Site "?"]
[Date "2018.01.04"]
[Round "2"]
[White "Davidsson, Oskar Vikingur"]
[Black "Heidarsson, Arnar"]
[Result "1-0"]
[ECO "B77"]
[WhiteElo "1854"]
[BlackElo "1592"]
[PlyCount "49"]
[EventDate "2018.??.??"]
[EventType "swiss"]
[EventCountry "ISL"]
[SourceTitle "Kopavogur"]
[TimeControl "5400+30"]
[WhiteClock "0:56:13"]
[BlackClock "1:08:43"]

1. e4 {[%emt 0:00:00]} c5 {[%emt 0:00:00]} 2. Nf3 {[%emt 0:00:05]} d6 {[%emt 0:00:00]} 3. d4 {[%emt 0:00:12]} cxd4 {[%emt 0:00:00]} 4. Nxd4 {[%emt 0:00:06]} Nf6 {[%emt 0:00:20]} 5. Nc3 {[%emt 0:00:13]} g6 {[%emt 0:00:38]} 6. Be3 {[%emt 0:00:40]} Bg7 {[%emt 0:00:18]} 7. f3 {[%emt 0:00:28]} Nc6 {[%emt 0:00:26]} 8. Qd2 {[%emt 0:00:10]} O-O {[%emt 0:00:58]} 9. Bc4 {[%emt 0:00:16]} Bd7 {[%emt 0:00:13]} 10. a3 {[%emt 0:00:33]} Ne5 {[%emt 0:02:38]} 11. Bb3 {[%emt 0:00:13]} Rc8 {[%emt 0:01:07]} 12. O-O-O {[%emt 0:01:19]} Nc4 {[%emt 0:03:14]} 13. Bxc4 {[%emt 0:00:10]} Rxc4 {[%emt 0:00:10]} 14. g4 {[%emt 0:00:40]} Qa5 {[%emt 0:05:27]} 15. Nb3 {[%emt 0:00:51]} Qc7 {[%emt 0:00:12]} 16. h4 {[%emt 0:09:03]} h5 {[%emt 0:00:14]} 17. gxh5 {[%emt 0:02:06]} Nxh5 {[%emt 0:00:07]} 18. Bd4 {[%emt 0:00:21]} Rc8 {[%emt 0:06:33]} 19. Bxg7 {[%emt 0:01:39]} Kxg7 {[%emt 0:00:09]} 20. Rhg1 {[%emt 0:04:32]} Ba4 {[%emt 0:02:29]} 21. Nd4 {[%emt 0:00:19]} e6 {[%emt 0:06:02]} 22. Rxg6+ {[%emt 0:07:53]} Kf8 {[%emt 0:07:27]} 23. Nxe6+ {[%emt 0:01:17]} fxe6 {[%emt 0:01:15]} 24. Qh6+ {[%emt 0:00:11]} Ke7 {[%emt 0:05:50]} 25. Qxh5 1-0

[Event "Steinthor Baldursson memorial 2018"]
[Site "?"]
[Date "2018.01.04"]
[Round "2"]
[White "Johannsson, Birkir Isak"]
[Black "Mai, Alexander Oliver"]
[Result "1-0"]
[ECO "D58"]
[WhiteElo "1760"]
[BlackElo "1970"]
[PlyCount "125"]
[EventDate "2018.??.??"]
[EventType "swiss"]
[EventCountry "ISL"]
[SourceTitle "Kopavogur"]
[TimeControl "5400+30"]
[WhiteClock "0:04:34"]
[BlackClock "0:06:43"]

1. d4 {[%emt 0:03:10]} Nf6 {[%emt 0:00:04]} 2. c4 {[%emt 0:00:39]} e6 {[%emt 0:00:11]} 3. Nf3 {[%emt 0:00:09]} d5 {[%emt 0:00:07]} 4. Nc3 {[%emt 0:00:07]} Be7 {[%emt 0:00:06]} 5. Bg5 {[%emt 0:00:33]} h6 {[%emt 0:00:14]} 6. Bh4 {[%emt 0:00:05]} O-O {[%emt 0:00:06]} 7. e3 {[%emt 0:00:18]} b6 {[%emt 0:00:14]} 8. Be2 {[%emt 0:00:18]} Bb7 {[%emt 0:00:09]} 9. cxd5 {[%emt 0:00:47]} exd5 {[%emt 0:00:36]} 10. O-O {[%emt 0:01:49]} Nbd7 {[%emt 0:02:32]} 11. Rc1 {[%emt 0:00:37]} Re8 {[%emt 0:03:01]} 12. a3 {[%emt 0:05:05]} a5 {[%emt 0:05:29]} 13. Qc2 {[%emt 0:01:47]} Rc8 {[%emt 0:04:43]} 14. h3 {[%emt 0:02:49]} c6 {[%emt 0:05:41]} 15. Qb1 {[%emt 0:02:21]} Bd6 {[%emt 0:03:09]} 16. Bxf6 {[%emt 0:01:24]} Nxf6 {[%emt 0:01:23]} 17. b4 {[%emt 0:02:30]} axb4 {[%emt 0:00:35]} 18. axb4 {[%emt 0:00:11]} b5 {[%emt 0:01:09]} 19. Qb3 {[%emt 0:02:35]} Qe7 {[%emt 0:01:09]} 20. Rb1 {[%emt 0:00:29]} Ra8 {[%emt 0:03:38]} 21. Ne1 {[%emt 0:02:16]} Bc8 {[%emt 0:05:21]} 22. Nd3 {[%emt 0:04:19]} Bf5 {[%emt 0:01:37]} 23. Rb2 {[%emt 0:00:55]} Bxd3 {[%emt 0:01:50]} 24. Bxd3 {[%emt 0:00:48]} Bc7 {[%emt 0:04:59]} 25. Re1 {[%emt 0:04:09]} Qd6 {[%emt 0:01:35]} 26. g3 {[%emt 0:04:40]} h5 {[%emt 0:04:35]} 27. h4 {[%emt 0:01:10]} Re7 {[%emt 0:08:28]} 28. Bf1 {[%emt 0:01:49]} Bb6 {[%emt 0:01:44]} 29. Reb1 {[%emt 0:01:37]} Ng4 {[%emt 0:02:52]} 30. Ne2 {[%emt 0:02:05]} Bc7 {[%emt 0:03:29]} 31. Nf4 {[%emt 0:03:12]} Qh6 {[%emt 0:01:46]} 32. Ng2 {[%emt 0:01:31]} Qf6 {[%emt 0:02:08]} 33. Qd3 {[%emt 0:07:14]} Re6 {[%emt 0:05:11]} 34. Rc2 {[%emt 0:02:32]} Bd6 {[%emt 0:02:21]} 35. Qd2 {[%emt 0:01:00]} Bc7 {[%emt 0:01:42]} 36. Rbc1 {[%emt 0:04:12]} Bd6 {[%emt 0:02:18]} 37. Rxc6 {[%emt 0:04:17]} Bxb4 {[%emt 0:03:26]} 38. Rc8+ {[%emt 0:00:16]} Re8 {[%emt 0:01:52]} 39. Rxe8+ {[%emt 0:00:54]} Rxe8 {[%emt 0:00:02]} 40. Qa2 {[%emt 0:08:52]} Bd6 {[%emt 0:04:46]} 41. Bxb5 {[%emt 0:01:39]} Rb8 {[%emt 0:00:06]} 42. Bd3 {[%emt 0:01:43]} Ba3 {[%emt 0:02:33]} 43. Rf1 {[%emt 0:02:14]} Qd6 {[%emt 0:02:38]} 44. Nf4 {[%emt 0:00:20]} Nf6 {[%emt 0:00:10]} 45. Rb1 {[%emt 0:01:25]} Bb4 {[%emt 0:01:11]} 46. Qa6 {[%emt 0:01:21]} Qc7 {[%emt 0:01:09]} 47. Kg2 {[%emt 0:03:16]} Rb6 {[%emt 0:01:20]} 48. Qa4 {[%emt 0:01:16]} Qd6 {[%emt 0:00:14]} 49. Rc1 {[%emt 0:01:00]} g6 {[%emt 0:01:08]} 50. Qc2 {[%emt 0:00:50]} Ng4 {[%emt 0:01:01]} 51. Qc8+ {[%emt 0:00:40]} Kg7 {[%emt 0:00:18]} 52. Be2 {[%emt 0:01:51]} Ba3 {[%emt 0:00:49]} 53. Rc7 {[%emt 0:00:38]} Nh6 {[%emt 0:01:45]} 54. Rd7 {[%emt 0:02:52]} Qb4 {[%emt 0:02:07]} 55. Nxd5 {[%emt 0:03:15]} Qd2 {[%emt 0:00:18]} 56. Nxb6 {[%emt 0:00:17]} Qxe2 {[%emt 0:00:04]} 57. Qc7 {[%emt 0:00:34]} Qg4 {[%emt 0:00:56]} 58. Qe5+ {[%emt 0:00:38]} Kh7 {[%emt 0:00:08]} 59. Rd8 {[%emt 0:01:31]} Ng8 {[%emt 0:00:25]} 60. Nd5 {[%emt 0:01:14]} g5 {[%emt 0:01:19]} 61. Rxg8 {[%emt 0:00:23]} Kxg8 {[%emt 0:00:26]} 62. Nf6+ {[%emt 0:00:08]} Kf8 {[%emt 0:00:03]} 63. Nxg4 {[%emt 0:00:11]} 1-0

[Event "Steinthor Baldursson memorial 2018"]
[Site "?"]
[Date "2018.01.04"]
[Round "2"]
[White "Fjallheim, Leif Reinert"]
[Black "Bannout, Edvin"]
[Result "1-0"]
[ECO "A04"]
[WhiteElo "1720"]
[BlackElo "1869"]
[PlyCount "111"]
[EventDate "2018.??.??"]
[EventType "swiss"]
[EventCountry "ISL"]
[SourceTitle "Kopavogur"]
[TimeControl "5400+30"]
[WhiteClock "0:01:08"]
[BlackClock "0:00:46"]

1. Nf3 {[%emt 0:00:00]} c5 {[%emt 0:00:00]} 2. g3 {[%emt 0:00:44]} g6 {[%emt 0:00:20]} 3. Bg2 {[%emt 0:01:53]} Bg7 {[%emt 0:00:02]} 4. d3 {[%emt 0:00:50]} Nc6 {[%emt 0:01:17]} 5. Nc3 {[%emt 0:04:05]} e6 {[%emt 0:04:01]} 6. e4 {[%emt 0:07:37]} Nge7 {[%emt 0:00:11]} 7. O-O {[%emt 0:02:59]} O-O {[%emt 0:01:02]} 8. Ne2 {[%emt 0:05:53]} e5 {[%emt 0:06:31]} 9. Be3 {[%emt 0:09:54]} b6 {[%emt 0:10:52]} 10. Ne1 {[%emt 0:06:17]} d5 {[%emt 0:04:00]} 11. c3 {[%emt 0:04:31]} Be6 {[%emt 0:07:20]} 12. Qc2 {[%emt 0:06:15]} Rc8 {[%emt 0:03:29]} 13. Rd1 {[%emt 0:03:56]} Qd7 {[%emt 0:05:17]} 14. f4 {[%emt 0:02:53]} Bh6 {[%emt 0:07:41]} 15. Bc1 {[%emt 0:02:43]} Bh3 {[%emt 0:07:20]} 16. f5 {[%emt 0:02:39]} Bxg2 {[%emt 0:07:18]} 17. Nxg2 {[%emt 0:03:00]} Bxc1 {[%emt 0:02:29]} 18. Qxc1 {[%emt 0:00:09]} f6 {[%emt 0:04:41]} 19. g4 {[%emt 0:02:39]} g5 {[%emt 0:01:45]} 20. Ng3 {[%emt 0:01:16]} Rcd8 {[%emt 0:01:57]} 21. Ne3 {[%emt 0:06:37]} d4 {[%emt 0:01:57]} 22. Nc2 {[%emt 0:01:29]} dxc3 {[%emt 0:00:37]} 23. bxc3 {[%emt 0:00:02]} b5 {[%emt 0:05:26]} 24. a3 {[%emt 0:02:15]} b4 {[%emt 0:02:18]} 25. axb4 {[%emt 0:00:55]} cxb4 {[%emt 0:00:22]} 26. cxb4 {[%emt 0:01:49]} Nxb4 {[%emt 0:01:02]} 27. Nxb4 {[%emt 0:05:21]} Qd4+ {[%emt 0:00:02]} 28. Rf2 {[%emt 0:01:12]} Qxb4 {[%emt 0:00:08]} 29. Nh5 {[%emt 0:03:58]} Qd4 {[%emt 0:04:38]} 30. h4 {[%emt 0:02:23]} h6 {[%emt 0:01:56]} 31. hxg5 {[%emt 0:00:58]} fxg5 {[%emt 0:02:20]} 32. Qa3 {[%emt 0:03:46]} Rd7 {[%emt 0:01:08]} 33. Qb3+ {[%emt 0:02:30]} Kh7 34. Qe6 {[%emt 0:01:21]} Qd6 {[%emt 0:01:43]} 35. Qxd6 {[%emt 0:00:07]} Rxd6 {[%emt 0:00:02]} 36. Ra2 {[%emt 0:01:12]} a6 {[%emt 0:00:48]} 37. Kf2 {[%emt 0:00:26]} Rfd8 {[%emt 0:00:21]} 38. Ke3 {[%emt 0:00:34]} Kg8 {[%emt 0:01:02]} 39. Ra3 {[%emt 0:00:54]} Kf7 {[%emt 0:00:46]} 40. Ng3 {[%emt 0:00:59]} Ng8 {[%emt 0:00:37]} 41. Nh5 {[%emt 0:00:53]} Nf6 {[%emt 0:01:48]} 42. Nxf6 {[%emt 0:00:12]} Kxf6 {[%emt 0:00:09]} 43. Rh1 {[%emt 0:00:37]} Kg7 {[%emt 0:00:45]} 44. Rc1 {[%emt 0:00:11]} R8d7 {[%emt 0:00:17]} 45. Rc5 {[%emt 0:00:41]} Kf6 {[%emt 0:00:12]} 46. Rc8 {[%emt 0:00:48]} Ra7 {[%emt 0:00:33]} 47. Rh8 {[%emt 0:00:29]} Kg7 {[%emt 0:00:19]} 48. Re8 {[%emt 0:00:33]} Kf6 {[%emt 0:00:10]} 49. Rg8 {[%emt 0:00:31]} Kf7 {[%emt 0:00:12]} 50. Rc8 {[%emt 0:00:28]} Kf6 {[%emt 0:00:50]} 51. Rc5 {[%emt 0:00:31]} Rad7 {[%emt 0:00:38]} 52. Rca5 {[%emt 0:00:26]} Ra7 {[%emt 0:00:54]} 53. R3a4 {[%emt 0:00:23]} h5 {[%emt 0:04:12]} 54. gxh5 {[%emt 0:00:14]} g4 {[%emt 0:00:26]} 55. d4 {[%emt 0:00:56]} exd4+ {[%emt 0:00:11]} 56. Kf4 {[%emt 0:00:20]} 1-0